bitfinex-derivatives/quotes_SOLF0:USTF0_20250924
["timestamp","ask_amount","ask_price","bid_price","bid_amount"]
[1758728687951,7.54,214.59,214.49,7.24]
[1758728688152,3.52391664,214.58,214.49,7.24]
[1758728688453,7.54,214.56,214.53,4.193]
[1758728689145,7.54,214.58,214.53,4.193]
[1758728689353,3.52651459,214.57,214.53,4.193]
[1758728689553,7.54,214.55,214.53,4.193]
[1758728689942,7.54,214.55,214.5,4.1936]
[1758728690148,7.54,214.53,214.5,4.1936]
[1758728690552,3.53073642,214.52,214.5,4.1936]
[1758728690753,7.54,214.53,214.5,4.1936]
[1758728690953,3.53008562,214.52,214.5,11.4336]
[1758728691249,7.54,214.53,214.5,11.4336]
[1758728691454,3.53229606,214.52,214.5,11.4336]
[1758728691652,7.54,214.53,214.5,11.4336]
[1758728691854,3.5322923,214.52,214.5,11.4336]
[1758728692156,7.54,214.53,214.5,11.4336]
[1758728692454,3.53252638,214.52,214.5,11.4336]
[1758728692654,3.53252638,214.51,214.5,11.4336]
[1758728692952,3.53252638,214.52,214.5,4.1936]
[1758728693150,3.53252638,214.51,214.5,4.1936]
[1758728693955,3.53252638,214.56,214.5,11.5336]
[1758728694153,10.71252638,214.55,214.51,7.34]
[1758728694453,3.53252638,214.54,214.51,11.5334]
[1758728694652,3.53252638,214.53,214.51,11.5334]
[1758728694854,3.53252638,214.52,214.51,11.5334]
[1758728695053,3.53252638,214.54,214.51,4.1934]
[1758728695252,3.53252638,214.53,214.52,7.34]
[1758728697252,3.53252638,214.53,214.51,11.5334]
[1758728697454,3.53252638,214.52,214.51,11.5334]
[1758728700357,2.638e-05,214.52,214.51,11.9934]
[1758728700552,2.638e-05,214.52,214.51,7.34]
[1758728700853,5.18008531,214.57,214.51,7.34]
[1758728701056,5.18008531,214.58,214.51,7.34]
[1758728701753,14.73137342,214.59,214.51,7.34]
[1758728702347,7.41,214.58,214.55,4.1926]
[1758728703256,7.41,214.58,214.52,4.1932]
[1758728703458,7.41,214.58,214.51,7.34]
[1758728704062,5.18008531,214.6,214.52,7.41]
[1758728704264,5.18008531,214.61,214.53,65.2263]
[1758728704462,5.18008531,214.61,214.54,7.41]
[1758728704662,5.18008531,214.63,214.57,2.14128811]
[1758728704864,5.18008531,214.64,214.58,7.41]
[1758728705055,5.18008531,214.65,214.58,7.41]
[1758728705260,5.18008531,214.63,214.58,7.41]
[1758728705461,5.18008531,214.63,214.56,7.41]
[1758728705956,5.18008531,214.63,214.59,4.1918]
[1758728706162,12.59008531,214.63,214.52,9.55128811]
[1758728706365,5.18008531,214.62,214.52,9.55128811]
[1758728706663,9.55128811,214.61,214.52,9.55128811]
[1758728706965,14.73137342,214.61,214.52,7.41]
[1758728707166,2.14128811,214.58,214.52,7.41]
[1758728707462,2.14128811,214.58,214.45,8.389]
[1758728707463,7.41,214.54,214.47,7.41]
[1758728708064,7.41,214.54,214.48,4.1941]
[1758728709067,7.41,214.54,214.47,7.41]
[1758728709369,7.41,214.54,214.44,7.41]
[1758728709370,2.14128811,214.52,214.44,7.41]
[1758728709558,7.41,214.51,214.44,7.41]
[1758728711067,2.14128811,214.52,214.45,65.2513]
[1758728711268,2.14128811,214.52,214.48,4.1939]
[1758728711467,7.41,214.51,214.48,4.1939]
[1758728712067,2.14128811,214.52,214.46,11.6044]
[1758728712263,10.8854541,214.51,214.47,7.41]
[1758728712466,3.4754541,214.5,214.47,7.41]
[1758728712667,3.4754541,214.49,214.47,7.41]
[1758728712968,3.4754541,214.48,214.47,7.41]
[1758728717170,7.32137342,214.56,214.49,4.1938]
[1758728717373,3.47407939,214.55,214.49,4.1938]
[1758728717567,3.47407939,214.54,214.46,65.2478]
[1758728717768,3.47407939,214.53,214.51,11.6034]
[1758728717968,3.47407939,214.52,214.51,11.6034]
[1758728718668,3.47407939,214.52,214.41,65.2627]
[1758728718669,3.47407939,214.52,214.49,7.41]
[1758728718868,3.47407939,214.51,214.48,11.604]
[1758728719071,3.47407939,214.5,214.49,7.41]
[1758728719272,3.47407939,214.5,214.49,4.1938]
[1758728719973,3.47407939,214.5,214.49,11.6038]
[1758728720170,3.47407939,214.5,214.44,65.2541]
[1758728720370,3.47407939,214.49,214.44,65.2541]
[1758728720576,9.55128811,214.55,214.48,4.1939]
[1758728720872,7.41,214.53,214.48,4.1939]
[1758728721062,10.88375858,214.52,214.48,11.6039]
[1758728721264,3.47375858,214.51,214.48,11.6039]
[1758728721576,3.47375858,214.5,214.48,11.6039]
[1758728721872,3.47375858,214.49,214.48,4.1939]
[1758728722269,3.47375858,214.49,214.48,11.6039]
[1758728723664,5.858e-05,214.49,214.48,11.6039]
[1758728723862,2.14128811,214.55,214.48,7.41]
[1758728725172,2.14128811,214.57,214.52,4.1931]
[1758728725475,7.71,214.56,214.48,7.41]
[1758728725868,14.04368811,214.57,214.51,4.1934]
[1758728726066,7.71,214.57,214.49,7.55]
[1758728726368,9.85128811,214.57,214.49,7.55]
[1758728727173,9.85128811,214.57,214.52,4.1932]
[1758728727374,7.71,214.56,214.52,11.7432]
[1758728729374,7.71,214.56,214.52,7.55]
[1758728729578,7.71,214.56,214.5,4.1936]
[1758728729872,2.14128811,214.54,214.5,4.1936]
[1758728730072,7.71,214.53,214.48,11.744]
[1758728730479,9.85128811,214.54,214.48,4.194]
[1758728730970,14.04428811,214.54,214.45,7.55]
[1758728732169,9.85128811,214.54,214.49,4.1939]
[1758728732372,7.71,214.53,214.49,11.7439]
[1758728733381,7.71,214.53,214.5,7.55]
[1758728733884,2.14128811,214.54,214.47,7.55]
[1758728735280,2.14128811,214.54,214.52,4.1932]
[1758728735480,9.85128811,214.54,214.52,4.1932]
[1758728735683,3.4577276,214.53,214.52,4.1932]
[1758728736878,11.1677276,214.53,214.5,4.1936]
[1758728737182,3.4577276,214.52,214.5,4.1936]
[1758728737981,3.4577276,214.51,214.5,4.1936]
[1758728738282,3.4577276,214.53,214.51,4.1933]
[1758728738677,7.71,214.52,214.51,4.1933]
[1758728738885,11.1677276,214.52,214.51,4.1933]
[1758728739685,11.1677276,214.52,214.49,4.1938]
[1758728739884,3.4577276,214.51,214.49,11.7438]
[1758728740286,3.4577276,214.51,214.49,4.1938]
[1758728740586,7.71,214.5,214.47,4.1942]
[1758728740886,3.4577276,214.49,214.47,4.1942]
[1758728741089,11.1677276,214.49,214.39,67.40978811]
[1758728741282,3.4577276,214.48,214.42,7.55]
[1758728741483,3.4577276,214.47,214.42,7.55]
[1758728741682,2.14128811,214.51,214.42,7.55]
[1758728741887,3.46395086,214.5,214.42,7.55]
[1758728742082,3.46395086,214.49,214.42,7.55]
[1758728742285,3.46395086,214.48,214.42,7.55]
[1758728742481,3.46395086,214.47,214.42,7.55]
[1758728742686,2.14128811,214.51,214.42,7.55]
[1758728742882,3.46389236,214.5,214.48,4.194]
[1758728743088,3.46389236,214.49,214.48,11.744]
[1758728743590,5.60518047,214.49,214.43,7.55]
[1758728743791,3.46389236,214.48,214.4,7.55]
[1758728744092,3.46389236,214.47,214.45,4.1946]
[1758728744294,3.46389236,214.46,214.45,4.1946]
[1758728745988,3.46389236,214.46,214.43,7.55]
[1758728746190,3.46389236,214.45,214.39,7.55]
[1758728746492,3.46389236,214.45,213.88,43.00289964]
[1758728746493,2.14128811,214.43,214.28,65.3002]
[1758728746689,2.14128811,214.4,214.34,7.55]
[1758728746891,11.17168867,214.39,214.29,7.55]
[1758728747090,3.46168867,214.38,214.29,7.55]
[1758728747287,3.46168867,214.37,214.32,4.1971]
[1758728747492,3.46168867,214.36,214.33,7.55]
[1758728747691,9.85128811,214.38,214.33,7.55]
[1758728747997,9.85128811,214.38,214.32,4.1971]
[1758728747998,3.45725238,214.37,214.32,4.1971]
[1758728748287,3.45725238,214.36,214.33,7.55]
[1758728748491,3.45725238,214.36,214.26,4.1983]
[1758728748492,7.71,214.36,214.26,4.1983]
[1758728748697,3.52058395,214.35,214.25,7.55]
[1758728748890,3.52058395,214.34,214.28,7.55]
[1758728749092,3.52058395,214.33,214.32,4.1972]
[1758728749289,9.85128811,214.4,214.32,11.7472]
[1758728749489,2.14128811,214.37,214.32,11.7472]
[1758728749692,11.22867049,214.36,214.32,11.7472]
[1758728749993,3.51867049,214.35,214.32,11.7472]
[1758728750589,3.51867049,214.35,214.32,7.55]
[1758728750992,3.51867049,214.35,214.29,6.33898811]
[1758728751292,11.22867049,214.34,214.29,11.7477]
[1758728751493,3.51867049,214.33,214.29,11.7477]
[1758728751695,2.14128811,214.36,214.28,7.55]
[1758728751887,3.51424538,214.35,214.28,7.55]
[1758728752088,3.51424538,214.34,214.28,7.55]
[1758728752288,2.14128811,214.36,214.31,4.1974]
[1758728752489,11.22233101,214.35,214.28,7.55]
[1758728752697,3.51233101,214.34,214.28,7.55]
[1758728752896,7.71,214.32,214.24,65.3147]
[1758728753094,7.71,214.32,214.23,2.14128811]
[1758728753791,9.45128811,214.33,214.27,4.1982]
[1758728754095,9.45128811,214.33,214.25,7.27]
[1758728754798,7.31,214.33,214.25,7.27]
[1758728754997,2.14128811,214.32,214.25,7.27]
[1758728755693,7.31,214.34,214.27,7.27]
[1758728755898,3.50476968,214.33,214.27,7.27]
[1758728756099,3.50476893,214.32,214.27,11.468]
[1758728756299,3.50476893,214.32,214.24,67.45568811]
[1758728756300,7.31,214.34,214.26,7.27]
[1758728756499,3.50253255,214.33,214.26,7.27]
[1758728756692,7.31,214.34,214.26,7.27]
[1758728756893,3.5026055,214.33,214.26,7.27]
[1758728757199,7.31,214.34,214.3,4.1976]
[1758728757400,3.50110163,214.33,214.3,4.1976]
[1758728757700,7.31,214.34,214.3,4.1976]
[1758728757900,3.5010251,214.33,214.3,4.1976]
[1758728758102,7.31,214.34,214.3,4.1976]
[1758728758397,3.49975589,214.33,214.3,4.1976]
[1758728758598,7.31,214.34,214.3,4.1976]
[1758728758791,3.49984721,214.33,214.3,4.1976]
[1758728758992,7.31,214.34,214.3,11.4676]
[1758728759298,3.50029676,214.33,214.3,11.4676]
[1758728759490,7.31,214.34,214.3,11.4676]
[1758728762103,7.31,214.34,214.3,11.9776]
[1758728764603,7.84,214.37,214.3,11.9776]
[1758728764902,3.49582579,214.36,214.3,11.9776]
[1758728765103,3.49582579,214.35,214.3,11.9776]
[1758728765303,7.84,214.33,214.3,11.9776]
[1758728765703,7.84,214.33,214.3,7.78]
[1758728765902,7.84,214.33,214.27,4.198]
[1758728766101,7.84,214.33,214.17,79.47093132]
[1758728766102,3.35272277,214.33,214.18,65.333]
[1758728766299,7.84,214.32,214.2,7.78]
[1758728766506,3.35272277,214.24,214.12,7.78]
[1758728766705,7.84,214.21,214.13,4.2009]
[1758728767806,7.84,214.21,214.12,7.78]
[1758728768509,3.48625804,214.2,214.12,7.78]
[1758728768709,7.84,214.21,214.12,7.78]
[1758728768905,3.48651801,214.2,214.12,7.78]
[1758728769211,4.1996,214.2,214.12,7.78]
[1758728769506,7.84,214.21,214.12,7.78]
[1758728769710,3.48232271,214.2,214.13,65.3482]
[1758728769911,7.84,214.27,214.14,7.78]
[1758728770111,3.50055752,214.26,214.14,7.78]
[1758728770311,3.50055752,214.25,214.14,7.78]
[1758728770509,3.50055752,214.24,214.14,7.78]
[1758728770710,3.50055752,214.23,214.14,7.78]
[1758728771011,7.84,214.27,214.14,7.78]
[1758728771209,3.49609311,214.26,214.14,7.78]
[1758728771409,3.49609311,214.25,214.15,3.35272277]
[1758728771605,3.49609311,214.24,214.18,4.1998]
[1758728771804,7.84,214.27,214.18,4.1998]
[1758728772005,3.49632836,214.26,214.18,4.1998]
[1758728772309,3.49632836,214.25,214.18,4.1998]
[1758728772502,3.49632836,214.24,214.18,4.1998]
[1758728772703,7.84,214.27,214.18,4.1998]
[1758728772902,3.49795157,214.26,214.18,4.1998]
[1758728773103,3.49795157,214.25,214.17,7.78]
[1758728773302,3.49795157,214.24,214.17,7.78]
[1758728773505,3.49795157,214.23,214.17,7.78]
[1758728773809,3.49605758,214.22,214.15,4.2006]
[1758728774009,7.84,214.22,214.15,4.2006]
[1758728774210,3.49508308,214.21,214.15,4.2006]
[1758728774410,7.84,214.22,214.15,4.2006]
[1758728774610,3.49492449,214.21,214.15,4.2006]
[1758728774810,7.84,214.22,214.15,4.2006]
[1758728775016,3.49478785,214.21,214.15,4.2006]
[1758728775212,7.84,214.22,214.15,4.2006]
[1758728775410,3.49440403,214.21,214.13,11.9809]
[1758728775612,3.49440403,214.2,214.13,11.9809]
[1758728775809,7.84,214.22,214.13,7.78]
[1758728776005,3.49412666,214.21,214.13,7.78]
[1758728776214,3.49412666,214.2,214.13,7.78]
[1758728776413,7.84,214.22,214.13,7.78]
[1758728776613,3.49367484,214.21,214.13,7.78]
[1758728776815,3.49367484,214.2,214.13,11.9808]
[1758728777013,7.84,214.19,214.13,7.78]
[1758728777315,3.49322753,214.18,214.03,73.7822]
[1758728777518,7.84,214.18,214.08,7.78]
[1758728777811,7.84,214.25,214.13,7.78]
[1758728778013,7.84,214.23,214.13,7.78]
[1758728778213,3.49296372,214.22,214.14,65.3448]
[1758728778413,3.49296372,214.21,214.15,7.78]
[1758728778618,7.84,214.23,214.15,7.78]
[1758728778825,3.49355435,214.22,214.15,7.78]
[1758728779017,3.49355435,214.21,214.15,7.78]
[1758728779225,7.84,214.23,214.15,7.78]
[1758728779422,3.49425476,214.22,214.15,7.78]
[1758728779618,3.49425476,214.21,214.15,7.78]
[1758728779826,3.49425476,214.2,214.11,7.78]
[1758728780031,7.84,214.23,214.14,7.78]
[1758728780325,3.49381881,214.22,214.15,65.3421]
[1758728780620,3.49381881,214.21,214.16,7.78]
[1758728780825,12.0384,214.27,214.17,4.2001]
[1758728781025,7.84,214.25,214.17,4.2001]
[1758728781226,3.49510614,214.24,214.16,7.78]
[1758728781426,3.49510614,214.23,214.16,7.78]
[1758728781729,3.49510614,214.22,214.16,7.78]
[1758728781919,3.49510614,214.21,214.15,3.35272277]
[1758728782220,3.49510614,214.21,214.13,65.3486]
[1758728782221,3.49622754,214.2,214.13,65.3486]
[1758728782425,7.84,214.25,214.14,7.78]
[1758728782625,3.49644529,214.24,214.14,7.78]
[1758728782823,3.49644529,214.23,214.14,7.78]
[1758728783023,3.49644529,214.22,214.14,7.78]
[1758728783219,3.49644529,214.21,214.14,7.78]
[1758728783426,3.49644529,214.2,214.14,7.78]
[1758728783624,3.49644529,214.19,214.1,7.66]
[1758728783824,3.49644529,214.18,214.15,7.66]
[1758728784024,12.039,214.23,214.15,7.66]
[1758728784226,3.49776869,214.22,214.15,7.66]
[1758728784425,3.49776869,214.21,214.15,7.66]
[1758728784625,3.49776869,214.2,214.15,7.66]
[1758728784816,3.49776869,214.19,214.15,7.66]
[1758728785020,3.49776869,214.18,214.15,7.66]
[1758728785222,3.49776869,214.17,214.08,65.3637]
[1758728785423,7.34,214.19,214.09,7.66]
[1758728785626,3.50117212,214.18,214.09,7.66]
[1758728785824,3.50117212,214.17,214.09,7.66]
[1758728786025,3.50117212,214.16,214.15,7.66]
[1758728787226,3.50117212,214.16,214.14,4.2006]
[1758728787427,7.34,214.2,214.15,7.66]
[1758728787617,3.50423837,214.19,214.15,11.8604]
[1758728787927,3.50423837,214.18,214.15,7.66]
[1758728788127,3.50423837,214.17,214.1,15.21422277]
[1758728788327,3.50423837,214.16,214.1,11.01272277]
[1758728788523,3.50423837,214.15,214.11,7.66]
[1758728788724,3.50423837,214.14,214.08,7.66]
[1758728788929,3.50423837,214.13,214.08,7.66]
[1758728789126,11.5399,214.19,214.12,4.201]
[1758728789326,3.50810635,214.18,214.12,4.201]
[1758728789628,3.50810635,214.17,214.13,7.66]
[1758728789826,3.50810635,214.16,214.14,7.66]
[1758728790028,3.50810635,214.15,214.14,7.66]
[1758728792432,3.50810635,214.15,214.13,4.2008]
[1758728792633,3.50810635,214.14,214.13,4.2008]
[1758728793534,3.50810635,214.14,214.07,7.66]
[1758728793729,3.50810635,214.13,214.07,7.66]
[1758728793932,3.50810635,214.12,214.06,11.01272277]
[1758728794134,10.84810635,214.11,214.07,7.66]
[1758728794333,3.50810635,214.1,214.07,7.66]
[1758728794526,3.50810635,214.09,214.07,7.66]
[1758728794830,3.50810635,214.08,214.07,7.66]
[1758728795232,3.50810635,214.08,214.07,11.862]
[1758728796133,3.50810635,214.08,214.04,4.2027]
[1758728796331,3.47961114,214.07,214.02,7.66]
[1758728796523,3.47961114,214.06,213.99,7.66]
[1758728796728,7.34,214.11,213.99,7.66]
[1758728796925,3.47919729,214.1,214.0,65.3872]
[1758728797128,3.47919729,214.09,214.01,65.385]
[1758728797333,3.47919729,214.08,214.02,7.66]
[1758728797537,3.47919729,214.07,214.01,11.01272277]
[1758728797743,7.34,214.11,214.01,11.01272277]
[1758728798035,3.37960853,214.1,214.01,11.01272277]
[1758728798240,3.37960853,214.09,214.01,11.01272277]
[1758728798430,7.34,214.11,214.01,11.01272277]
[1758728798631,3.37961498,214.1,214.01,11.01272277]
[1758728798831,3.37961498,214.09,214.01,11.01272277]
[1758728799026,7.34,214.11,214.01,11.01272277]
[1758728799238,7.34,214.09,214.02,65.3821]
[1758728800343,7.34,214.16,214.05,65.3729]
[1758728800535,3.35807805,214.15,214.07,65.3669]
[1758728800838,3.35807805,214.14,214.07,73.0269]
[1758728801136,3.35807805,214.13,214.07,73.0269]
[1758728801339,7.34,214.16,214.07,73.0269]
[1758728801541,7.34,214.14,214.1,4.2013]
[1758728801740,3.35869594,214.13,214.07,7.66]
[1758728802038,3.35869594,214.13,214.11,4.2012]
[1758728803138,7.34,214.13,214.11,4.2012]
[1758728803440,7.34,214.13,214.09,4.2017]
[1758728803635,7.34,214.13,214.07,7.66]
[1758728805543,7.34,214.16,214.09,4.2016]
[1758728805740,7.34,214.14,214.09,4.2016]
[1758728805936,7.34,214.16,214.09,4.2016]
[1758728806141,7.34,214.14,214.09,4.2016]
[1758728806342,7.34,214.14,214.07,4.2021]
[1758728806935,7.34,214.14,214.08,4.2018]
[1758728807237,7.34,214.14,214.07,65.3665]
[1758728807541,8.531e-05,214.22,214.11,3.35272277]
[1758728807746,2.92382,214.36,214.27,65.3048]
[1758728808036,3.34124165,214.35,214.28,4.00504083]
[1758728808244,10.68124165,214.34,214.29,4.00504083]
[1758728808445,3.34124165,214.33,214.3,4.00504083]
[1758728808633,10.68124165,214.33,214.31,4.00504083]
[1758728808833,10.68124165,214.33,214.26,15.21102277]
[1758728808834,3.34124165,214.32,214.26,15.21102277]
[1758728809037,3.34124165,214.32,214.28,7.66]
[1758728809239,3.34124165,214.32,214.29,4.00568775]
[1758728809441,3.34124165,214.32,214.3,4.00568775]
[1758728809644,10.68124165,214.32,214.31,4.00568775]
[1758728810246,10.68124165,214.32,214.31,3.38913638]
[1758728811148,10.68124165,214.32,214.23,7.66]
[1758728811342,3.34124165,214.31,214.24,4.1987]
[1758728811547,3.34124165,214.3,214.24,4.1987]
[1758728811743,3.34124165,214.29,214.24,11.8587]
[1758728811943,7.34,214.32,214.24,11.8587]
[1758728812143,3.22772789,214.31,214.24,11.8587]
[1758728812344,3.22772789,214.3,214.24,11.8587]
[1758728812546,7.34,214.32,214.24,11.8587]
[1758728812741,3.22710204,214.31,214.24,11.8587]
[1758728812938,3.22710204,214.3,214.24,11.8587]
[1758728813142,7.34,214.32,214.24,11.8587]
[1758728813347,3.22617222,214.31,214.24,11.8587]
[1758728813537,3.22617222,214.3,214.24,11.8587]
[1758728813739,7.4,214.28,214.19,7.88]
[1758728814049,3.22549863,214.27,214.19,7.88]
[1758728814348,3.22549863,214.26,214.2,4.1996]
[1758728814550,7.4,214.28,214.2,4.1996]
[1758728814746,3.22495163,214.27,214.2,4.1996]
[1758728814947,7.4,214.28,214.22,4.1992]
[1758728815156,10.62492314,214.27,214.22,4.1992]
[1758728815345,7.4,214.32,214.23,7.88]
[1758728815651,3.22556525,214.31,214.27,7.88]
[1758728815946,2.92382,214.36,214.3,4.1976]
[1758728816145,3.22586007,214.35,214.3,4.1976]
[1758728816347,3.22586007,214.34,214.3,4.1976]
[1758728816548,2.92382,214.36,214.32,4.1972]
[1758728816748,3.22471505,214.35,214.32,4.1972]
[1758728816948,2.92382,214.36,214.32,4.1972]
[1758728817150,3.22338085,214.35,214.32,4.1972]
[1758728817347,2.92382,214.36,214.32,4.1972]
[1758728817545,3.22314524,214.35,214.32,4.1972]
[1758728817850,10.62289856,214.34,214.25,4.1985]
[1758728818049,2.92382,214.36,214.24,7.88]
[1758728818252,2.92382,214.36,214.28,7.88]
[1758728818253,3.22256046,214.35,214.28,7.88]
[1758728818447,3.22192583,214.34,214.27,4.1982]
[1758728818752,7.4,214.32,214.23,7.88]
[1758728819058,3.22192583,214.31,214.23,7.88]
[1758728819249,7.4,214.32,214.23,7.88]
[1758728819562,7.4,214.32,214.24,65.3145]
[1758728820249,11.41845189,214.36,214.28,4.1979]
[1758728820456,3.22081278,214.35,214.28,4.1979]
[1758728820654,3.22081278,214.34,214.28,4.1979]
[1758728820850,11.41845189,214.36,214.27,7.76]
[1758728821051,3.22011075,214.35,214.29,4.1976]
[1758728821252,11.41845189,214.36,214.29,4.1976]
[1758728821460,3.21961969,214.35,214.29,4.1976]
[1758728821644,11.41845189,214.36,214.29,4.1976]
[1758728821848,2.92382,214.36,214.34,7.76]
[1758728822349,2.92382,214.36,214.35,7.76]
[1758728822747,5.28106998,214.45,214.4,4.1956]
[1758728822952,3.21818362,214.44,214.4,4.1956]
[1758728823155,3.21818362,214.44,214.37,7.76]
[1758728823156,12.76106998,214.45,214.37,7.76]
[1758728823447,3.21576068,214.44,214.35,4.1965]
[1758728823756,3.21576068,214.43,214.35,4.1965]
[1758728823956,7.48,214.45,214.32,11.9571]
[1758728824256,7.48,214.43,214.32,7.76]
[1758728824458,3.21546414,214.42,214.33,4.197]
[1758728824751,3.21546414,214.41,214.33,4.197]
[1758728824952,7.48,214.43,214.33,4.197]
[1758728825153,7.48,214.4,214.32,7.76]
[1758728825351,7.48,214.45,214.36,7.76]
[1758728825752,3.21152466,214.44,214.37,4.1962]
[1758728825947,7.48,214.52,214.39,65.2691]
[1758728826153,3.21173661,214.51,214.4,73.0261]
[1758728826352,3.21173661,214.5,214.4,73.0261]
[1758728826563,7.48,214.52,214.41,65.263]
[1758728827658,4.1929,214.55,214.43,73.0164]
[1758728827861,7.48,214.57,214.44,65.2539]
[1758728828156,7.48,214.57,214.45,7.76]
[1758728828559,7.48,214.57,214.49,4.1939]
[1758728829060,7.48,214.57,214.49,11.9539]
[1758728830460,7.48,214.57,214.45,7.76]
[1758728831256,4.1929,214.54,214.45,11.9547]
[1758728831456,7.48,214.57,214.45,11.9547]
[1758728831658,7.48,214.57,214.45,7.76]
[1758728832568,4.1931,214.53,214.45,7.76]
[1758728832757,7.48,214.54,214.45,7.76]
[1758728833156,4.1933,214.52,214.45,7.76]
[1758728833863,7.48,214.54,214.45,7.76]
[1758728835659,7.48,214.52,214.39,7.76]
[1758728836166,4.1937,214.5,214.39,7.76]
[1758728836361,4.1937,214.5,214.41,4.1953]
[1758728837365,4.1943,214.47,214.39,7.76]
[1758728838270,4.1947,214.46,214.39,7.76]
[1758728838461,65.2424,214.48,214.39,7.76]
[1758728838858,4.1946,214.46,214.39,7.76]
[1758728839161,7.48,214.49,214.39,7.76]
[1758728841267,4.1936,214.51,214.42,11.9552]
[1758728842569,4.1939,214.49,214.42,11.9552]
[1758728843170,7.48,214.5,214.42,11.9552]
[1758728843469,7.48,214.55,214.42,7.76]
[1758728843873,4.1931,214.54,214.42,7.76]
[1758728844370,4.1931,214.54,214.46,12.0243]
[1758728845072,4.1933,214.53,214.46,7.83]
[1758728845771,4.1935,214.52,214.46,7.83]
[1758728846674,7.4,214.53,214.41,4.1954]
[1758728847266,4.194,214.49,214.41,4.1954]
[1758728848564,4.1934,214.52,214.42,7.83]
[1758728848873,7.4,214.53,214.42,12.0251]
[1758728849469,4.1939,214.5,214.42,12.0251]
[1758728850665,4.194,214.49,214.42,12.0251]
[1758728852274,4.1936,214.51,214.42,12.0251]
[1758728852467,7.4,214.53,214.42,12.0251]
[1758728853976,4.1935,214.51,214.43,4.1949]
[1758728854280,4.1935,214.51,214.44,7.83]
[1758728854473,4.1935,214.51,214.44,12.0247]
[1758728855274,7.4,214.53,214.44,12.0247]
[1758728855481,7.4,214.53,214.44,7.83]
[1758728855876,4.1941,214.49,214.44,7.83]
[1758728856076,4.1941,214.49,214.43,7.83]
[1758728857568,21.39,214.53,214.39,7.83]
[1758728857770,7.4,214.45,214.3,7.83]
[1758728857975,7.4,214.43,214.31,4.1973]
[1758728858182,4.1962,214.38,214.3,7.83]
[1758728858475,7.4,214.38,214.3,7.83]
[1758728858673,4.1972,214.33,214.3,7.83]
[1758728858880,4.1972,214.33,214.26,7.83]
[1758728859280,4.1974,214.32,214.26,7.83]
[1758728860281,11.5976,214.31,214.26,7.83]
[1758728861573,4.197,214.34,214.25,58.57364056]
[1758728862384,7.4,214.35,214.26,7.83]
[1758728863775,4.197,214.33,214.26,7.83]
[1758728864684,7.4,214.32,214.25,50.74364056]
[1758728866182,7.4,214.32,214.25,54.94224056]
[1758728866583,4.1966,214.36,214.26,7.83]
[1758728866784,12.68106998,214.37,214.26,7.83]
[1758728867589,4.1969,214.34,214.26,7.83]
[1758728868281,11.5969,214.34,214.26,7.83]
[1758728868490,4.1973,214.32,214.26,7.83]
[1758728869479,7.4,214.34,214.26,7.83]
[1758728872690,65.2917,214.32,214.25,50.74364056]
[1758728872889,7.4,214.31,214.25,50.74364056]
[1758728873791,11.5975,214.31,214.25,50.74364056]
[1758728874291,7.4,214.31,214.25,50.74364056]
[1758728874684,4.1978,214.3,214.25,50.74364056]
[1758728874885,7.4,214.31,214.25,50.74364056]
[1758728875090,73.1767,214.31,214.25,50.74364056]
[1758728875283,7.88,214.31,214.25,50.74364056]
[1758728876291,4.198,214.29,214.25,50.74364056]